fUSD/lending_fUSD_20251217
["ID","MTS","AMOUNT","RATE_DAILY","PERIOD"]
[398900241,1765979441046,-150.0,0.00016986,2]
[398900243,1765979441055,-53183.85,0.00016986,2]
[398900245,1765979441064,-531.5147524,0.00016989,2]
[398900247,1765979441073,-151.0,0.00016997,2]
[398900249,1765979441082,-150.0,0.00016999,2]
[398900251,1765979441091,-500.0,0.00016999,2]
[398900253,1765979441101,-534.56287078,0.00016999,2]
[398900254,1765979441110,-500.0,0.00016999,2]
[398900256,1765979441120,-500.0,0.00016999,2]
[398900259,1765979441129,-500.0,0.00016999,2]
[398900260,1765979441138,-500.0,0.00016999,2]
[398900262,1765979441147,-500.0,0.00016999,2]
[398900263,1765979441156,-500.0,0.00016999,2]
[398900264,1765979441166,-500.0,0.00016999,2]
[398900265,1765979441180,-500.0,0.00016999,2]
[398900266,1765979441190,-500.0,0.00016999,2]
[398900267,1765979441200,-500.0,0.00016999,2]
[398900268,1765979441212,-500.0,0.00016999,2]
[398900269,1765979441222,-625.68,0.00016999,2]
[398900270,1765979441233,-200.77285261,0.00016999,2]
[398900271,1765979441243,-688.94394477,0.00016999,2]
[398900272,1765979441253,-500.0,0.00016999,5]
[398900273,1765979441263,-3729586.68028854,0.00017,2]
[398900274,1765979441276,-1091.11152283,0.00017,2]
[398900275,1765979441507,-500.0,0.00015504,2]
[398900276,1765979441516,-500.0,0.00015504,2]
[398900277,1765979441525,-500.0,0.00015504,2]
[398900278,1765979441535,-500.0,0.00015504,2]
[398900279,1765979441544,-500.0,0.00015504,2]
[398900280,1765979441553,-500.0,0.00015504,2]
[398900281,1765979441562,-500.0,0.00015504,2]
[398900282,1765979441571,-3891.35951514,0.00017,2]
[398900283,1765979441582,-4257.78598744,0.00017,2]
[398900284,1765979441593,-196227.25740561,0.00017,2]
[398900285,1765979441623,-8040.49557726,0.00017,2]
[398900286,1765979441634,-826.28059818,0.00017,2]
[398900287,1765979441652,-500.0,0.00015504,2]
[398900288,1765979441661,-902.40012242,0.00017,2]
[398900289,1765979441673,-2801.83727147,0.00017,2]
[398900290,1765979441692,-11055.59701595,0.00017,2]
[398900291,1765979441702,-1239.43669989,0.00017,2]
[398900294,1765979443387,-500.0,0.00015504,2]
[398900295,1765979443397,-235.24608787,0.00015504,2]
[398900296,1765979443444,-264.75391213,0.00015504,2]
[398900297,1765979443455,-500.0,0.00015504,2]
[398900298,1765979443465,-450.0,0.00015504,2]
[398900299,1765979443475,-248400.02915181,0.00017,2]
[398900300,1765979443486,-1137.79536712,0.00017,2]
[398900301,1765979443502,-7569.95305312,0.00017,2]
[398900302,1765979443513,-619.94646908,0.00017,2]
[398900303,1765979443615,-2979.06507186,0.00017,2]
[398900304,1765979443631,-1988.8604776,0.00017,2]
[398900315,1765979446586,-466.81370507,0.00017,2]
[398900317,1765979446598,-1431.0499155,0.00017,2]
[398900319,1765979446609,-3607.02658723,0.00017,2]
[398900321,1765979446619,-2693.44869221,0.00017,2]
[398900324,1765979446630,-2251.20163637,0.00017,2]
[398900326,1765979446642,-58167.34076784,0.00017,2]
[398900328,1765979446653,-271.0542,0.00017,2]
[398900331,1765979446666,-23916.42488506,0.00017,2]
[398900777,1765979949969,-226.46240275,0.00015404,2]
[398900778,1765979949998,-300.0,0.00015417,2]
[398900779,1765979950018,-300.0,0.00015429,2]
[398900780,1765979950039,-300.0,0.00015454,2]
[398900781,1765979950060,-300.0,0.00015474,2]
[398900782,1765979950082,-205.68736746,0.00015474,2]
[398900783,1765979950104,-500.0,0.00015504,2]
[398900784,1765979950125,-500.0,0.00015504,2]
[398900785,1765979950145,-300.0,0.00015504,2]
[398900786,1765979950167,-300.0,0.00015504,2]
[398900787,1765979950187,-1200.0,0.00015504,2]
[398900788,1765979950206,-300.0,0.00015504,2]
[398900789,1765979950225,-151.1,0.00015504,2]
[398900790,1765979950246,-500.0,0.00015505,2]
[398900791,1765979950267,-500.0,0.00015505,2]
[398900792,1765979950288,-500.0,0.00015505,2]
[398900793,1765979950307,-508.91959047,0.00015505,2]
[398900794,1765979950331,-500.0,0.00015505,2]
[398900795,1765979950352,-436.26074643,0.00015505,2]
[398900796,1765979950382,-500.0,0.00015505,2]
[398900797,1765979950402,-279.99666033,0.00015505,2]
[398900798,1765979950423,-500.0,0.00015505,2]
[398900799,1765979950443,-500.0,0.00015505,2]
[398900800,1765979950463,-509.78781684,0.00015505,2]
[398900801,1765979950483,-510.6542677,0.00015505,2]
[398900802,1765979950504,-500.0,0.00015505,2]
[398900803,1765979950525,-500.0,0.00015505,2]
[398900804,1765979950545,-500.0,0.00015505,2]
[398900805,1765979950564,-502.6322512,0.00015505,2]
[398900806,1765979950585,-500.0,0.00015505,2]
[398900807,1765979950605,-500.0,0.00015505,2]
[398900808,1765979950627,-300.0,0.00015543,2]
[398900809,1765979950649,-300.0,0.00015543,2]
[398900810,1765979951222,-300.0,0.00015543,2]
[398900811,1765979951242,-532.0009,0.000158,2]
[398900812,1765979951262,-11140.49998534,0.000158,2]
[398900813,1765979951283,-151.0,0.00015897,2]
[398900814,1765979951308,-500.0,0.00015899,2]
[398900815,1765979951331,-500.0,0.00015899,2]
[398900816,1765979951353,-500.0,0.00015899,2]
[398900817,1765979951378,-500.0,0.00015899,2]
[398900818,1765979951402,-500.0,0.00015899,2]
[398900819,1765979951425,-571.20137135,0.00015899,2]
[398900820,1765979951447,-1000.0,0.000159,2]
[398900821,1765979951466,-4097.5322,0.000159,2]
[398900822,1765979951486,-4371.6334,0.000159,2]
[398900823,1765979951515,-235.8268,0.000159,2]
[398900824,1765979951535,-26017.6681,0.000159,2]
[398900825,1765979951559,-24851.13614013,0.000159,2]
[398900826,1765980107608,44447.98965629,0.00015,5]
[398900841,1765980631591,-870.55,0.00015309,2]
[398900842,1765980631600,-300.0,0.00015374,2]
[398900843,1765980631610,-176.72,0.00015439,2]
[398900844,1765980631619,-300.0,0.00015483,2]
[398900845,1765980631629,-300.0,0.00015483,2]
[398900846,1765980631638,-148.67394647,0.00015505,2]
[398900847,1765980631650,-351.32605353,0.00015505,2]
[398900848,1765980631659,-500.0,0.00015505,2]
[398900849,1765980631669,-500.0,0.00015505,2]
[398900850,1765980631678,-197.89759111,0.00015582,2]
[398900851,1765980631690,-68.89836245,0.00015582,2]
[398900852,1765980631699,-1995.781,0.00015582,2]
[398900853,1765980631709,-200.0,0.00015649,2]
[398900854,1765980631718,-200.0,0.00015697,2]
[398900855,1765980631727,-226.11157755,0.00015799,2]
[398900856,1765980631739,-73.88842245,0.00015799,2]
[398900857,1765980631748,-373.01293441,0.000158,2]
[398900858,1765980631757,-281.6049,0.000158,2]
[398900859,1765980631767,-2500.0,0.000158,2]
[398900860,1765980631776,-1000.0,0.000158,2]
[398900861,1765980631785,-609.10822122,0.000158,2]
[398900874,1765980637641,-3351.29127878,0.000158,2]
[398900875,1765980637651,-166.67,0.00015853,2]
[398900876,1765980637660,-207.4,0.0001589,2]
[398900877,1765980637669,-200.0,0.0001589,2]
[398900878,1765980637679,-500.0,0.0001589,2]
[398900879,1765980637689,-500.0,0.0001589,2]
[398900880,1765980637699,-500.0,0.0001589,2]
[398900881,1765980637708,-500.0,0.0001589,2]
[398900882,1765980637718,-500.0,0.0001589,2]
[398900883,1765980637733,-500.0,0.0001589,2]
[398900884,1765980637742,-500.0,0.0001589,2]
[398900885,1765980637752,-151.0,0.0001589,2]
[398900886,1765980637761,-151.0,0.0001589,2]
[398900887,1765980637770,-151.0,0.0001589,2]
[398900888,1765980637779,-151.0,0.0001589,2]
[398900889,1765980637787,-151.0,0.0001589,2]
[398900890,1765980637796,-151.0,0.0001589,2]
[398900891,1765980637805,-151.0,0.0001589,2]
[398900892,1765980637815,-151.0,0.0001589,2]
[398900893,1765980637824,-151.0,0.0001589,2]
[398900894,1765980637833,-151.0,0.0001589,2]
[398900895,1765980637842,-151.0,0.0001589,2]
[398900896,1765980637851,-151.0,0.0001589,2]
[398900897,1765980637861,-151.0,0.00015897,2]
[398900898,1765980637870,-341.24459682,0.00015899,2]
[398900899,1765980637879,-500.0,0.00015899,2]
[398900900,1765980637888,-315.53458161,0.00015899,2]
[398900901,1765980637897,-500.0,0.00015899,2]
[398900902,1765980637906,-500.0,0.00015899,2]
[398900903,1765980637916,-500.0,0.00015899,2]
[398900904,1765980637925,-500.0,0.00015899,2]
[398900905,1765980637934,-500.0,0.00015899,2]
[398900906,1765980637943,-500.0,0.00015899,2]
[398900907,1765980637952,-500.0,0.00015899,2]
[398900908,1765980637961,-500.0,0.00015899,2]
[398900909,1765980637970,-500.0,0.00015899,2]
[398900910,1765980637980,-500.0,0.00015899,2]
[398900911,1765980637989,-500.0,0.00015899,2]
[398900912,1765980637998,-500.0,0.00015899,2]
[398900913,1765980638007,-500.0,0.00015899,2]
[398900914,1765980638016,-250.0,0.00015899,2]
[398900915,1765980638025,-500.0,0.00015899,2]
[398900916,1765980638035,-500.0,0.00015899,2]
[398900917,1765980638044,-500.0,0.00015899,2]
[398900918,1765980638053,-500.0,0.00015899,2]
[398900919,1765980638062,-500.0,0.00015899,2]
[398900920,1765980638072,-500.0,0.00015899,2]
[398900921,1765980638082,-500.0,0.00015899,2]
[398900922,1765980638091,-500.0,0.00015899,2]
[398900923,1765980638100,-500.0,0.00015899,2]
[398900924,1765980638110,-500.0,0.00015899,2]
[398900925,1765980638119,-500.0,0.00015899,2]
[398900926,1765980638128,-500.0,0.00015899,2]
[398900927,1765980638138,-500.0,0.00015899,2]
[398900928,1765980638147,-500.0,0.00015899,2]
[398900929,1765980638156,-500.0,0.00015899,2]
[398900930,1765980638165,-500.0,0.00015899,2]
[398900931,1765980638175,-500.0,0.00015899,2]
[398900932,1765980638184,-500.0,0.00015899,2]
[398900933,1765980638193,-500.0,0.00015899,2]
[398900934,1765980638203,-270.0,0.00015899,2]
[398900935,1765980638212,-384.81786753,0.00015899,2]
[398900936,1765980638224,-115.18213247,0.00015899,2]
[398900937,1765980638233,-500.0,0.00015899,2]
[398900938,1765980638243,-500.0,0.00015899,2]
[398900939,1765980638252,-434.11934813,0.00015899,2]
[398900940,1765980638264,-65.88065187,0.00015899,2]
[398900941,1765980638273,-500.0,0.00015899,2]
[398900942,1765980638283,-34.11934813,0.00015899,2]
[398900943,1765980638294,-465.88065187,0.00015899,2]
[398900944,1765980638307,-500.0,0.00015899,2]
[398900945,1765980638316,-357.57856585,0.00015899,2]
[398900946,1765980638329,-142.42143415,0.00015899,2]
[398900947,1765980638339,-500.0,0.00015899,2]
[398900948,1765980638348,-500.0,0.00015899,2]
[398900949,1765980638357,-500.0,0.00015899,2]
[398900950,1765980638368,-500.0,0.00015899,2]
[398900951,1765980638379,-26.75886081,0.00015899,2]
[398900952,1765980638391,-473.24113919,0.00015899,2]
[398900953,1765980638400,-500.0,0.00015899,2]
[398900954,1765980638410,-500.0,0.00015899,2]
[398900955,1765980638419,-500.0,0.00015899,2]
[398900956,1765980638429,-500.0,0.00015899,2]
[398900957,1765980638438,-500.0,0.00015899,2]
[398900958,1765980638448,-500.0,0.00015899,2]
[398900959,1765980638458,-500.0,0.00015899,2]
[398900960,1765980638468,-500.0,0.00015899,2]
[398900961,1765980638478,-500.0,0.00015899,2]
[398900962,1765980638488,-500.0,0.00015899,2]
[398900963,1765980638498,-598.66100766,0.00015899,2]
[398900964,1765980638507,-500.0,0.00015899,2]
[398900965,1765980638517,-500.0,0.00015899,2]
[398900966,1765980638526,-500.0,0.00015899,2]
[398900967,1765980638535,-500.0,0.00015899,2]
[398900968,1765980638544,-500.0,0.00015899,2]
[398900969,1765980638554,-500.0,0.00015899,2]
[398900970,1765980638564,-600.0,0.00015899,2]
[398900971,1765980638574,-500.0,0.00015899,2]
[398900972,1765980638583,-500.0,0.00015899,2]
[398900973,1765980638593,-500.0,0.00015899,2]
[398900974,1765980638602,-500.0,0.00015899,2]
[398900975,1765980638612,-500.0,0.00015899,2]
[398900976,1765980638621,-500.0,0.00015899,2]
[398900977,1765980638631,-378.95692509,0.00015899,2]
[398900978,1765980638641,-23608.37070878,0.000159,2]
[398900979,1765980638683,-3615.14081481,0.000159,2]
[398900980,1765980638696,-955.88436296,0.000159,2]
[398900981,1765980638707,-878.59516704,0.000159,2]
[398900982,1765980638719,-506.24704117,0.000159,2]
[398900985,1765980639754,-681.24730218,0.000159,2]
[398900986,1765980640022,-1098.53291601,0.000159,2]
[398900987,1765980640034,-1009.29180773,0.000159,2]
[398900988,1765980640213,-430.4257349,0.000159,2]
[398900989,1765980640226,-10279.88414971,0.000159,2]
[398900990,1765980640238,-19138.23941,0.000159,2]
[398900991,1765980640249,-2987.2,0.000159,2]
[398901007,1765980642885,-502600.17844863,0.000159,2]
[398901008,1765980642921,-603.2142,0.000159,2]
[398901009,1765980642932,-490.0,0.000159,2]
[398901011,1765980642943,-575.79329,0.000159,2]
[398901013,1765980642953,-766.66,0.000159,2]
[398901015,1765980642964,-443.4506406,0.000159,2]
[398901017,1765980642975,-1261.67894944,0.000159,2]
[398901019,1765980642985,-403.92,0.000159,2]
[398901083,1765980646243,-2837.89587153,0.000159,2]
[398901084,1765980646255,-4397.72042833,0.000159,2]
[398901085,1765980646267,-116215.7166179,0.000159,2]
[398901086,1765980646290,-297.68314574,0.000159,2]
[398901087,1765980646304,-373.49586585,0.000159,2]
[398901088,1765980646315,-416.30793719,0.000159,2]
[398901089,1765980646343,-343.53915486,0.000159,2]
[398901093,1765980736297,5525.0,0.000155,5]
[398901099,1765981022107,1558.82,7.549e-05,2]
[398901100,1765981022325,1558.82,7.946e-05,2]
[398901101,1765981022554,1558.82,8.344e-05,2]
[398901102,1765981022789,323.54,8.741e-05,2]
[398901103,1765981022815,814.40428125,8.741e-05,2]
[398901104,1765981022838,420.87571875,8.741e-05,2]
[398901105,1765981023007,393.5285625,9.138e-05,2]
[398901106,1765981023031,814.40428125,9.138e-05,2]
[398901107,1765981023054,350.88715625,9.138e-05,2]
[398901108,1765981023228,463.517125,9.535e-05,2]
[398901109,1765981023252,814.40428125,9.535e-05,2]
[398901110,1765981023277,280.89859375,9.535e-05,2]
[398901111,1765981023472,533.5056875,9.933e-05,2]
[398901112,1765981023498,814.40428125,9.933e-05,2]
[398901113,1765981023522,210.91003125,9.933e-05,2]
[398901114,1765981023690,603.49425,0.0001033,2]
[398901115,1765981023713,814.40428125,0.0001033,2]
[398901116,1765981023737,140.92146875,0.0001033,2]
[398901117,1765981023886,673.4828125,0.00010727,2]
[398901119,1765981033995,-885.3371875,0.00010727,2]
[398901120,1765981034018,-554.78854109,0.00011125,2]
[398901121,1765981036990,-204.03356152,0.00011125,2]
[398901122,1765981037035,-799.99789739,0.00011125,2]
[398901123,1765981039144,-332.81231216,0.00011522,2]
[398901124,1765981041343,-230.77578099,0.00011522,2]
[398901125,1765981045230,-556.48,0.00011522,2]
[398901126,1765981048714,-368.61,0.00011522,2]
[398901127,1765981089825,465.57384821,0.00013495,7]
[398901138,1765981274537,-70.14190685,0.00011522,2]
[398901139,1765981274564,-1558.82,0.00011919,2]
[398901140,1765981274590,-1558.82,0.00012317,2]
[398901141,1765981274615,-1558.82,0.00012714,2]
[398901142,1765981274641,-1558.82,0.00013111,2]
[398901143,1765981274667,-1558.82,0.00013509,2]
[398901144,1765981274693,-1200.0,0.00013849,2]
[398901145,1765981274718,-1558.82,0.00013906,2]
[398901160,1765981552874,89376.93809315,0.0001399,2]
[398901294,1765981831710,-712.104928,0.0001385,2]
[398901296,1765981831720,-300.0,0.00013955,2]
[398901297,1765981831729,-87.895072,0.00013989,2]
[398901298,1765981831741,-212.104928,0.00013989,2]
[398901300,1765981831750,-201.45386227,0.00013989,2]
[398901301,1765981831761,-803.3053275,0.00013989,2]
[398901302,1765981831772,-195.24081023,0.00013989,2]
[398901303,1765981831781,-300.0,0.00013989,2]
[398901304,1765981831791,-300.0,0.00013989,2]
[398901305,1765981831800,-3703.07903342,0.0001399,2]
[398901306,1765981831811,-524.45373049,0.0001399,2]
[398901307,1765981831914,-871.98025582,0.0001399,2]
[398901308,1765981831929,-824.45059083,0.0001399,2]
[398901309,1765981831940,-1788.82734362,0.0001399,2]
[398901310,1765981831952,-1563.58366009,0.0001399,2]
[398901311,1765981831962,-166.66,0.00014095,2]
[398901313,1765981831972,-300.0,0.00014117,2]
[398901314,1765981831981,-1558.82,0.00014303,2]
[398901315,1765981831990,-10272.99082332,0.0001439,2]
[398901316,1765981832003,-166.66,0.00014392,2]
[398901317,1765981832012,-9581.34,0.00014469,2]
[398901318,1765981832021,-1500.0,0.00014524,2]
[398901319,1765981832030,-166.66,0.00014688,2]
[398901320,1765981832040,-1558.82,0.00014701,2]
[398901321,1765981832049,-1600.0,0.00014746,2]
[398901322,1765981832059,-1042.92874462,0.000148,2]
[398901323,1765981832068,-1003.0,0.00014932,2]
[398901324,1765981832077,-197.0,0.00014932,2]
[398901325,1765981832087,-121.77981802,0.00014962,2]
[398901326,1765981832114,-1032.05982024,0.00014962,2]
[398901327,1765981832123,-166.66,0.00014985,2]
[398901329,1765981832132,-5014.92,0.00014999,2]
[398901330,1765981832142,-150.0,0.00014999,2]
[398901332,1765981832153,-259.09404676,0.00015,2]
[398901333,1765981832161,-1008.965943,0.00015,2]
[398901334,1765981832172,-471.84604647,0.00015,2]
[398901335,1765981832186,-3245.05021973,0.00015,2]
[398901336,1765981832195,-200.0,0.00015075,2]
[398901337,1765981832203,-1558.82,0.00015098,2]
[398901338,1765981832212,-342.0,0.00015127,2]
[398901339,1765981832222,-166.66,0.00015282,2]
[398901340,1765981832232,-250.0,0.00015312,2]
[398901341,1765981832241,-300.0,0.00015312,2]
[398901342,1765981832250,-300.0,0.00015312,2]
[398901343,1765981832259,-195.0,0.00015312,2]
[398901344,1765981832268,-300.0,0.00015312,2]
[398901345,1765981832277,-420.0,0.00015326,2]
[398901346,1765981832286,-420.0,0.00015326,2]
[398901347,1765981832295,-194.0,0.00015326,2]
[398901348,1765981832304,-300.0,0.0001535,2]
[398901349,1765981832313,-1680.0,0.00015388,2]
[398901350,1765981832322,-300.0,0.00015389,2]
[398901351,1765981832331,-150.77,0.00015484,2]
[398901352,1765981832341,-200.32,0.00015525,2]
[398901353,1765981832350,-150.0,0.00015548,2]
[398901354,1765981832359,-166.66,0.00015579,2]
[398901355,1765981832368,-325.89275766,0.000156,2]
[398901356,1765981832377,-200.0,0.00015691,2]
[398901357,1765981832386,-151.0,0.00015691,2]
[398901358,1765981832397,-151.0,0.00015691,2]
[398901359,1765981832406,-151.0,0.00015691,2]
[398901360,1765981832415,-151.0,0.00015691,2]
[398901361,1765981832424,-151.0,0.00015691,2]
[398901362,1765981832433,-151.0,0.00015691,2]
[398901363,1765981832442,-151.0,0.00015691,2]
[398901364,1765981832451,-151.0,0.00015691,2]
[398901365,1765981832460,-151.0,0.00015691,2]
[398901366,1765981832469,-151.0,0.00015691,2]
[398901367,1765981832479,-161.05928193,0.00015691,2]
[398901368,1765981832488,-151.0,0.00015697,2]
[398901369,1765981832497,-500.0,0.00015699,2]
[398901370,1765981832506,-500.0,0.00015699,2]
[398901371,1765981832515,-500.0,0.00015699,2]
[398901372,1765981832525,-500.0,0.00015699,2]
[398901373,1765981832535,-359.76179328,0.00015699,2]
[398901374,1765981832544,-500.0,0.00015699,2]
[398901375,1765981832553,-500.0,0.00015699,2]
[398901376,1765981832563,-499.99999999,0.00015699,2]
[398901377,1765981832572,-3002.83540593,0.000157,2]
[398901378,1765981832581,-16892.95977828,0.000157,2]
[398901381,1765981838173,-251.80538329,0.000157,2]
[398901382,1765981838185,-742855.23483843,0.000157,2]
[398901383,1765981838194,-500.0,0.000157,2]
[398901384,1765981838204,-204.63597997,0.00015732,2]
[398901385,1765981838214,-177.979,0.00015799,2]
[398901386,1765981838223,-500.0,0.00015799,2]
[398901387,1765981838232,-500.0,0.00015799,2]
[398901388,1765981838241,-500.0,0.00015799,2]
[398901389,1765981838251,-500.0,0.00015799,2]
[398901390,1765981838260,-500.0,0.00015799,2]
[398901391,1765981838270,-500.0,0.00015799,2]
[398901392,1765981838280,-500.0,0.00015799,2]
[398901393,1765981838290,-500.0,0.00015799,2]
[398901394,1765981838299,-500.0,0.00015799,2]
[398901395,1765981838309,-500.0,0.00015799,2]
[398901396,1765981838319,-500.0,0.00015799,2]
[398901397,1765981838328,-500.0,0.00015799,2]
[398901398,1765981838337,-515.02785711,0.00015799,2]
[398901399,1765981838346,-500.0,0.00015799,2]
[398901400,1765981838356,-550.52788879,0.00015799,2]
[398901401,1765981838365,-500.0,0.00015799,2]
[398901402,1765981838374,-500.0,0.00015799,2]
[398901403,1765981838383,-516.74047021,0.00015799,2]
[398901404,1765981838393,-2137.879,0.00015799,2]
[398901405,1765981838402,-500.0,0.00015799,2]
[398901406,1765981838411,-500.0,0.00015799,2]
[398901407,1765981838421,-12251.8194,0.000158,2]
[398901408,1765981838430,-152.86,0.000158,2]
[398901409,1765981838439,-151.14,0.000158,2]
[398901410,1765981838449,-152.35,0.000158,2]
[398901411,1765981838459,-216296.88781934,0.00015825,2]
[398901412,1765981838468,-3002.83540584,0.00015833,2]
[398901413,1765981838478,-500.0,0.00015899,2]
[398901414,1765981838487,-500.0,0.00015899,2]
[398901415,1765981838497,-500.0,0.00015899,2]
[398901416,1765981838506,-500.0,0.00015899,2]
[398901417,1765981838516,-500.0,0.00015899,2]
[398901418,1765981838524,-500.0,0.00015899,2]
[398901419,1765981838534,-500.0,0.00015899,2]
[398901420,1765981838543,-500.0,0.00015899,2]
[398901421,1765981838552,-600.0,0.000159,2]
[398901422,1765981838562,-151.0,0.000159,2]
[398901423,1765981838571,-151.0,0.000159,2]
[398901424,1765981838581,-9908.2545497,0.000159,2]
[398901425,1765981838590,-4248.66599,0.000159,2]
[398901426,1765981838600,-2280.40701699,0.000159,2]
[398901427,1765981838610,-2280.40701696,0.000159,2]
[398901428,1765981838619,-2280.40701696,0.000159,2]
[398901429,1765981838629,-2280.40701696,0.000159,2]
[398901430,1765981838638,-2280.40701696,0.000159,2]
[398901431,1765981838648,-2280.40701696,0.000159,2]
[398901432,1765981838658,-150.0,0.0001594,2]
[398901433,1765981838668,-3002.83540584,0.00015967,2]
[398901434,1765981838677,-160.57893801,0.0001599,2]
[398901435,1765981838687,-151.0,0.00015997,2]
[398901436,1765981838696,-500.0,0.00015999,2]
[398901437,1765981838705,-286.90864955,0.00015999,2]
[398901438,1765981838714,-11112.25512909,0.00016,2]
[398901439,1765981838723,-144870.2598396,0.00016,2]
[398901440,1765981838733,-140346.93411606,0.00016,4]
[398901441,1765981838742,-325.89275759,0.00016071,2]
[398901442,1765981838752,-279.34430893,0.00016089,7]
[398901443,1765981838761,-3002.83540584,0.000161,2]
[398901444,1765981838770,-255.0,0.00016124,2]
[398901445,1765981838779,-4248.666,0.0001616,2]
[398901446,1765981838789,-160.29,0.00016169,2]
[398901447,1765981838799,-3002.83540584,0.00016233,2]
[398901448,1765981838810,-176.72,0.00016297,2]
[398901449,1765981838819,-11539.19490991,0.00016345,2]
[398901450,1765981838828,-3002.83540584,0.00016367,2]
[398901451,1765981838838,-432.0,0.00016398,2]
[398901452,1765981838848,-432.0,0.00016404,2]
[398901453,1765981838858,-432.0,0.00016418,2]
[398901454,1765981838868,-500.0,0.00016438,2]
[398901455,1765981838878,-500.0,0.00016438,2]
[398901456,1765981838888,-500.0,0.00016438,2]
[398901457,1765981838898,-500.0,0.00016438,2]
[398901458,1765981838910,-500.0,0.00016438,2]
[398901459,1765981838921,-500.0,0.00016438,2]
[398901460,1765981838933,-500.0,0.00016438,2]
[398901461,1765981838943,-500.0,0.00016438,2]
[398901462,1765981838952,-500.0,0.00016438,2]
[398901463,1765981838963,-500.0,0.00016438,2]
[398901464,1765981838972,-500.0,0.00016438,2]
[398901465,1765981838982,-500.0,0.00016438,2]
[398901466,1765981838991,-500.0,0.00016438,2]
[398901467,1765981839002,-500.0,0.00016438,2]
[398901468,1765981839012,-500.0,0.00016438,2]
[398901469,1765981839021,-500.0,0.00016438,2]
[398901470,1765981839031,-500.0,0.00016438,2]
[398901471,1765981839041,-500.0,0.00016438,2]
[398901472,1765981839050,-500.0,0.00016438,2]
[398901473,1765981839060,-500.0,0.00016438,2]
[398901474,1765981839070,-500.0,0.00016438,2]
[398901475,1765981839079,-500.0,0.00016438,2]
[398901476,1765981839088,-500.0,0.00016438,2]
[398901477,1765981839099,-500.0,0.00016438,2]
[398901478,1765981839110,-500.0,0.00016438,2]
[398901479,1765981839119,-500.0,0.00016438,2]
[398901480,1765981839129,-500.0,0.00016438,2]
[398901481,1765981839139,-500.0,0.00016438,2]
[398901482,1765981839148,-500.0,0.00016438,2]
[398901483,1765981839159,-500.0,0.00016438,2]
[398901484,1765981839168,-500.0,0.00016438,2]
[398901485,1765981839178,-500.0,0.00016438,2]
[398901486,1765981839187,-500.0,0.00016438,2]
[398901487,1765981839196,-500.0,0.00016438,2]
[398901488,1765981839206,-500.0,0.00016438,2]
[398901489,1765981839215,-500.0,0.00016438,2]
[398901490,1765981839224,-500.0,0.00016438,2]
[398901491,1765981839233,-500.0,0.00016438,2]
[398901492,1765981839242,-318.64544405,0.00016438,2]
[398901493,1765981839252,-500.0,0.00016438,2]
[398901494,1765981839261,-500.0,0.00016438,2]
[398901495,1765981839271,-500.0,0.00016438,2]
[398901496,1765981839281,-500.0,0.00016438,2]
[398901497,1765981839290,-500.0,0.00016438,2]
[398901498,1765981839299,-500.0,0.00016438,2]
[398901499,1765981839309,-500.0,0.00016438,2]
[398901500,1765981839319,-500.0,0.00016438,2]